[Event "Titled Tuesday Blitz December 27 Early 2022"]
[White "Majdan, Joanna"]
[Black "Bachmann, Axel"]
[WhiteFideId "1121979"]
[BlackFideId "3700488"]
[WhiteElo "2306"]
[BlackElo "2604"]
[Result "0-1"]
[Round "02"]
[TimeControl "180+2"]
[Date "2022.12.27"]
[WhiteClock "0:00:05"]
[BlackClock "0:00:05"]

1. e4 {[%clk 0:01:46]}  g6 {[%clk 0:03:00]} 2. d4 {[%clk 0:01:46]}  Bg7 {[%clk 0:02:59]} 3. Nc3 {[%clk 0:01:46]}  c6 {[%clk 0:02:57]} 4. f4 {[%clk 0:01:45]}  d5 {[%clk 0:02:55]} 5. e5 {[%clk 0:01:45]}  h5 {[%clk 0:02:51]} 6. Nf3 {[%clk 0:01:41]}  Nh6 {[%clk 0:02:51]} 7. h3 {[%clk 0:01:42]}  Nf5 {[%clk 0:02:46]} 8. Bd3 {[%clk 0:01:39]}  Ng3 {[%clk 0:02:46]} 9. Rg1 {[%clk 0:01:37]}  Bf5 {[%clk 0:02:43]} 10. Be3 {[%clk 0:01:36]}  Bxd3 {[%clk 0:02:24]} 11. Qxd3 {[%clk 0:01:37]}  e6 {[%clk 0:01:57]} 12. O-O-O {[%clk 0:01:34]}  h4 {[%clk 0:01:56]} 13. Ne2 {[%clk 0:01:33]}  Nf5 {[%clk 0:01:46]} 14. Ng5 {[%clk 0:01:27]}  Bf8 {[%clk 0:01:40]} 15. g4 {[%clk 0:01:20]}  hxg3 {[%clk 0:01:39]} 16. Nxg3 {[%clk 0:01:19]}  Nh4 {[%clk 0:01:32]} 17. f5 {[%clk 0:01:10]}  gxf5 {[%clk 0:01:28]} 18. Rdf1 {[%clk 0:01:08]}  Na6 {[%clk 0:01:16]} 19. Ne2 {[%clk 0:00:55]}  Be7 {[%clk 0:01:10]} 20. Nf3 {[%clk 0:00:34]}  Nxf3 {[%clk 0:01:07]} 21. Rxf3 {[%clk 0:00:35]}  Qa5 {[%clk 0:01:00]} 22. Rg7 {[%clk 0:00:21]}  Nb4 {[%clk 0:00:40]} 23. Qb3 {[%clk 0:00:18]}  Qxa2 {[%clk 0:00:30]} 24. Qxa2 {[%clk 0:00:15]}  Nxa2+ {[%clk 0:00:31]} 25. Kb1 {[%clk 0:00:14]}  Nb4 {[%clk 0:00:32]} 26. c3 {[%clk 0:00:13]}  Na6 {[%clk 0:00:31]} 27. Nf4 {[%clk 0:00:12]}  Bf8 {[%clk 0:00:29]} 28. Rg2 {[%clk 0:00:10]}  O-O-O {[%clk 0:00:25]} 29. Rfg3 {[%clk 0:00:10]}  Bh6 {[%clk 0:00:25]} 30. Kc2 {[%clk 0:00:04]}  Nb8 {[%clk 0:00:19]} 31. b4 {[%clk 0:00:01]}  Nd7 {[%clk 0:00:20]} 32. Kd3 {[%clk 0:00:02]}  Nb6 {[%clk 0:00:19]} 33. Ne2 {[%clk 0:00:02]}  Bxe3 {[%clk 0:00:18]} 34. Rxe3 {[%clk 0:00:03]}  Rh4 {[%clk 0:00:17]} 35. Reg3 {[%clk 0:00:03]}  Rdh8 {[%clk 0:00:16]} 36. Ng1 {[%clk 0:00:04]}  Kd7 {[%clk 0:00:15]} 37. Rg8 {[%clk 0:00:04]}  Ke7 {[%clk 0:00:15]} 38. R8g7 {[%clk 0:00:04]}  Nc4 {[%clk 0:00:15]} 39. Kc2 {[%clk 0:00:04]}  b6 {[%clk 0:00:14]} 40. Kd3 {[%clk 0:00:05]}  a5 {[%clk 0:00:15]} 41. Nf3 {[%clk 0:00:05]}  Rxh3 {[%clk 0:00:14]} 42. R7g3 {[%clk 0:00:05]}  f4 {[%clk 0:00:13]} 43. Rxh3 {[%clk 0:00:05]}  Rxh3 {[%clk 0:00:14]} 44. Ke2 {[%clk 0:00:05]}  a4 {[%clk 0:00:13]} 45. Rg7 {[%clk 0:00:05]}  a3 {[%clk 0:00:14]} 46. Ng5 {[%clk 0:00:06]}  Rh2+ {[%clk 0:00:12]} 47. Kf3 {[%clk 0:00:06]}  a2 {[%clk 0:00:08]} 48. Rxf7+ {[%clk 0:00:06]}  Ke8 {[%clk 0:00:09]} 49. Ra7 {[%clk 0:00:07]}  Na5 {[%clk 0:00:09]} 50. bxa5 {[%clk 0:00:05]}  a1=Q {[%clk 0:00:09]} 51. axb6 {[%clk 0:00:06]}  Qd1+ {[%clk 0:00:05]} 52. Kxf4 {[%clk 0:00:05]}  Qd2+ {[%clk 0:00:04]} 53. Kg4 {[%clk 0:00:05]}  Rg2+ {[%clk 0:00:04]} 54. Kh3 {[%clk 0:00:04]}  Qxg5 {[%clk 0:00:05]} 55. Ra8+ {[%clk 0:00:05]}  Kf7 {[%clk 0:00:04]} 56. Ra7+ {[%clk 0:00:05]}  Kg6 {[%clk 0:00:05]} 0-1


[Site "https://www.chess.com"]

[Event "Titled Tuesday Blitz December 27 Early 2022"]
[White "Martinez Alcantara, Jose Eduardo"]
[Black "Lewtak, Damian"]
[WhiteFideId "3805662"]
[BlackFideId "1141724"]
[WhiteElo "2619"]
[BlackElo "2381"]
[Result "1-0"]
[Round "02"]
[TimeControl "180+2"]
[Date "2022.12.27"]
[WhiteClock "0:02:33"]
[BlackClock "0:01:52"]

1. e4 {[%clk 0:03:00]}  c6 {[%clk 0:02:57]} 2. d3 {[%clk 0:03:00]}  d5 {[%clk 0:02:58]} 3. Nd2 {[%clk 0:03:01]}  g6 {[%clk 0:02:57]} 4. Ngf3 {[%clk 0:03:01]}  Bg7 {[%clk 0:02:57]} 5. g3 {[%clk 0:03:01]}  e5 {[%clk 0:02:58]} 6. Bg2 {[%clk 0:03:02]}  Nd7 {[%clk 0:02:57]} 7. O-O {[%clk 0:03:02]}  Ngf6 {[%clk 0:02:56]} 8. Re1 {[%clk 0:03:02]}  d4 {[%clk 0:02:52]} 9. Nc4 {[%clk 0:02:57]}  Qe7 {[%clk 0:02:52]} 10. c3 {[%clk 0:02:58]}  c5 {[%clk 0:02:28]} 11. cxd4 {[%clk 0:02:55]}  exd4 {[%clk 0:02:28]} 12. e5 {[%clk 0:02:53]}  Nd5 {[%clk 0:02:26]} 13. Nd6+ {[%clk 0:02:46]}  Kf8 {[%clk 0:02:14]} 14. Ng5 {[%clk 0:02:45]}  Nc7 {[%clk 0:01:57]} 15. Ndxf7 {[%clk 0:02:37]}  Nxe5 {[%clk 0:01:52]} 16. Nxh8 {[%clk 0:02:33]} 1-0


[Site "https://www.chess.com"]

[Event "Titled Tuesday Blitz December 27 Early 2022"]
[White "Minko, Dmitry"]
[Black "Mohammadian, Mohammad"]
[WhiteFideId "24188468"]
[BlackFideId "12566055"]
[WhiteElo "2247"]
[BlackElo "1398"]
[Result "1-0"]
[Round "02"]
[TimeControl "180+2"]
[Date "2022.12.27"]
[WhiteClock "0:01:34"]
[BlackClock "0:00:17"]

1. e4 {[%clk 0:03:00]}  e5 {[%clk 0:02:58]} 2. Nf3 {[%clk 0:03:01]}  Nc6 {[%clk 0:02:58]} 3. d4 {[%clk 0:03:01]}  exd4 {[%clk 0:02:56]} 4. Nxd4 {[%clk 0:03:02]}  Bc5 {[%clk 0:02:56]} 5. Be3 {[%clk 0:03:03]}  Qf6 {[%clk 0:02:54]} 6. c3 {[%clk 0:03:03]}  Nge7 {[%clk 0:02:53]} 7. g3 {[%clk 0:03:03]}  d5 {[%clk 0:02:50]} 8. Bg2 {[%clk 0:03:03]}  dxe4 {[%clk 0:02:47]} 9. Nb5 {[%clk 0:03:04]}  Bxe3 {[%clk 0:02:44]} 10. Nxc7+ {[%clk 0:03:04]}  Kf8 {[%clk 0:02:32]} 11. fxe3 {[%clk 0:03:04]}  Rb8 {[%clk 0:02:27]} 12. Nd5 {[%clk 0:03:05]}  Nxd5 {[%clk 0:02:25]} 13. Qxd5 {[%clk 0:03:06]}  Be6 {[%clk 0:02:22]} 14. Qxe4 {[%clk 0:03:02]}  Re8 {[%clk 0:02:19]} 15. Qf3 {[%clk 0:02:33]}  Qxf3 {[%clk 0:02:12]} 16. Bxf3 {[%clk 0:02:33]}  Bh3 {[%clk 0:02:09]} 17. Kf2 {[%clk 0:02:32]}  Ne5 {[%clk 0:02:02]} 18. Rd1 {[%clk 0:02:25]}  Nxf3 {[%clk 0:01:59]} 19. Kxf3 {[%clk 0:02:24]}  h5 {[%clk 0:01:57]} 20. Rd4 {[%clk 0:02:18]}  Bg4+ {[%clk 0:01:56]} 21. Kf2 {[%clk 0:02:18]}  g6 {[%clk 0:01:52]} 22. Nd2 {[%clk 0:02:17]}  Kg7 {[%clk 0:01:52]} 23. e4 {[%clk 0:01:51]}  Re7 {[%clk 0:01:50]} 24. Re1 {[%clk 0:01:50]}  Rhe8 {[%clk 0:01:49]} 25. Nf3 {[%clk 0:01:49]}  Bxf3 {[%clk 0:01:46]} 26. Kxf3 {[%clk 0:01:49]}  f5 {[%clk 0:01:46]} 27. Kf4 {[%clk 0:01:41]}  fxe4 {[%clk 0:01:46]} 28. Rexe4 {[%clk 0:01:30]}  Rxe4+ {[%clk 0:01:40]} 29. Rxe4 {[%clk 0:01:31]}  g5+ {[%clk 0:01:28]} 30. Ke3 {[%clk 0:01:28]}  Rxe4+ {[%clk 0:01:20]} 31. Kxe4 {[%clk 0:01:29]}  Kf6 {[%clk 0:01:17]} 32. h4 {[%clk 0:01:28]}  gxh4 {[%clk 0:01:14]} 33. gxh4 {[%clk 0:01:29]}  Ke6 {[%clk 0:01:12]} 34. Kf4 {[%clk 0:01:29]}  Kf6 {[%clk 0:01:12]} 35. c4 {[%clk 0:01:28]}  a5 {[%clk 0:01:11]} 36. b3 {[%clk 0:01:29]}  b6 {[%clk 0:01:11]} 37. a3 {[%clk 0:01:29]}  Kg6 {[%clk 0:01:07]} 38. Ke5 {[%clk 0:01:29]}  Kg7 {[%clk 0:00:56]} 39. b4 {[%clk 0:01:26]}  axb4 {[%clk 0:00:53]} 40. axb4 {[%clk 0:01:27]}  Kg6 {[%clk 0:00:51]} 41. c5 {[%clk 0:01:27]}  bxc5 {[%clk 0:00:50]} 42. bxc5 {[%clk 0:01:27]}  Kf7 {[%clk 0:00:50]} 43. Kd6 {[%clk 0:01:25]}  Ke8 {[%clk 0:00:49]} 44. Kc7 {[%clk 0:01:25]}  Ke7 {[%clk 0:00:48]} 45. Kb7 {[%clk 0:01:26]}  Ke6 {[%clk 0:00:46]} 46. c6 {[%clk 0:01:27]}  Kf5 {[%clk 0:00:46]} 47. c7 {[%clk 0:01:28]}  Kg4 {[%clk 0:00:47]} 48. c8=Q+ {[%clk 0:01:29]}  Kxh4 {[%clk 0:00:46]} 49. Qc1 {[%clk 0:01:30]}  Kg3 {[%clk 0:00:43]} 50. Qh1 {[%clk 0:01:31]}  h4 {[%clk 0:00:43]} 51. Kc6 {[%clk 0:01:32]}  h3 {[%clk 0:00:44]} 52. Kd5 {[%clk 0:01:33]}  h2 {[%clk 0:00:44]} 53. Ke4 {[%clk 0:01:33]}  Kh3 {[%clk 0:00:39]} 54. Kf4 {[%clk 0:01:33]}  Kh4 {[%clk 0:00:17]} 55. Qxh2# {[%clk 0:01:34]} 1-0


[Site "https://www.chess.com"]

[Event "Titled Tuesday Blitz December 27 Early 2022"]
[White "Mischuk, Dmitry"]
[Black "Tarasova, Viktoriya"]
[WhiteFideId "14118734"]
[BlackFideId "4175840"]
[WhiteElo "2298"]
[BlackElo "2226"]
[Result "1-0"]
[Round "02"]
[TimeControl "180+2"]
[Date "2022.12.27"]
[WhiteClock "0:01:01"]
[BlackClock "0:00:02"]

1. d4 {[%clk 0:03:00]}  Nf6 {[%clk 0:02:59]} 2. c4 {[%clk 0:03:00]}  e6 {[%clk 0:03:00]} 3. Nc3 {[%clk 0:02:59]}  Bb4 {[%clk 0:02:59]} 4. Qc2 {[%clk 0:02:59]}  O-O {[%clk 0:02:57]} 5. Nf3 {[%clk 0:02:59]}  c5 {[%clk 0:02:57]} 6. dxc5 {[%clk 0:02:58]}  Na6 {[%clk 0:02:57]} 7. Bf4 {[%clk 0:02:54]}  Re8 {[%clk 0:02:32]} 8. e3 {[%clk 0:02:53]}  Nxc5 {[%clk 0:02:30]} 9. Be2 {[%clk 0:02:50]}  Nce4 {[%clk 0:02:28]} 10. O-O {[%clk 0:02:49]}  Bxc3 {[%clk 0:02:13]} 11. bxc3 {[%clk 0:02:49]}  Qa5 {[%clk 0:02:10]} 12. Rac1 {[%clk 0:02:36]}  e5 {[%clk 0:02:01]} 13. Bg3 {[%clk 0:02:35]}  Nxg3 {[%clk 0:01:52]} 14. hxg3 {[%clk 0:02:36]}  d6 {[%clk 0:01:51]} 15. Rfd1 {[%clk 0:02:35]}  Qc5 {[%clk 0:01:46]} 16. Qb3 {[%clk 0:02:30]}  Qc7 {[%clk 0:00:53]} 17. Qb4 {[%clk 0:02:29]}  Rd8 {[%clk 0:00:52]} 18. c5 {[%clk 0:02:22]}  d5 {[%clk 0:00:39]} 19. c4 {[%clk 0:02:21]}  Be6 {[%clk 0:00:33]} 20. cxd5 {[%clk 0:02:18]}  Bxd5 {[%clk 0:00:32]} 21. a4 {[%clk 0:02:14]}  Rac8 {[%clk 0:00:28]} 22. Qb2 {[%clk 0:02:06]}  Re8 {[%clk 0:00:27]} 23. Bb5 {[%clk 0:01:58]}  Re7 {[%clk 0:00:27]} 24. Rd2 {[%clk 0:01:51]}  a6 {[%clk 0:00:27]} 25. Be2 {[%clk 0:01:50]}  Bc6 {[%clk 0:00:27]} 26. Qb4 {[%clk 0:01:19]}  Ne4 {[%clk 0:00:27]} 27. Rdd1 {[%clk 0:01:19]}  h6 {[%clk 0:00:19]} 28. a5 {[%clk 0:01:16]}  Nf6 {[%clk 0:00:18]} 29. Qb6 {[%clk 0:01:14]}  Qxb6 {[%clk 0:00:10]} 30. cxb6 {[%clk 0:01:14]}  Ree8 {[%clk 0:00:06]} 31. Rc5 {[%clk 0:01:08]}  Nd7 {[%clk 0:00:05]} 32. Rc3 {[%clk 0:01:06]}  Nf6 {[%clk 0:00:03]} 33. Rdc1 {[%clk 0:01:03]}  Bd7 {[%clk 0:00:02]} 34. Rc7 {[%clk 0:01:01]} 1-0


[Site "https://www.chess.com"]

[Event "Titled Tuesday Blitz December 27 Early 2022"]
[White "Moral Garcia, Serafin"]
[Black "Jaracz, Pawel"]
[WhiteFideId "2201925"]
[BlackFideId "1102222"]
[WhiteElo "2238"]
[BlackElo "2467"]
[Result "1-0"]
[Round "02"]
[TimeControl "180+2"]
[Date "2022.12.27"]
[WhiteClock "0:00:50"]
[BlackClock "0:00:40"]

1. c4 {[%clk 0:03:00]}  e6 {[%clk 0:02:58]} 2. Nf3 {[%clk 0:02:58]}  Nf6 {[%clk 0:02:58]} 3. b3 {[%clk 0:02:57]}  d5 {[%clk 0:02:58]} 4. Bb2 {[%clk 0:02:57]}  a5 {[%clk 0:02:58]} 5. e3 {[%clk 0:02:48]}  Be7 {[%clk 0:02:57]} 6. Nc3 {[%clk 0:02:43]}  O-O {[%clk 0:02:56]} 7. Be2 {[%clk 0:02:38]}  Nc6 {[%clk 0:02:49]} 8. d4 {[%clk 0:02:35]}  Ne4 {[%clk 0:02:46]} 9. O-O {[%clk 0:02:33]}  Bb4 {[%clk 0:02:29]} 10. Nxe4 {[%clk 0:02:31]}  dxe4 {[%clk 0:02:29]} 11. Nd2 {[%clk 0:02:31]}  f5 {[%clk 0:02:30]} 12. f3 {[%clk 0:02:22]}  exf3 {[%clk 0:02:26]} 13. Bxf3 {[%clk 0:02:21]}  Qg5 {[%clk 0:02:10]} 14. Qe2 {[%clk 0:02:11]}  Bd7 {[%clk 0:02:08]} 15. a3 {[%clk 0:01:56]}  Bxd2 {[%clk 0:02:05]} 16. Qxd2 {[%clk 0:01:55]}  Rae8 {[%clk 0:02:03]} 17. Rae1 {[%clk 0:01:45]}  b6 {[%clk 0:01:44]} 18. Qd3 {[%clk 0:01:29]}  Re7 {[%clk 0:01:12]} 19. e4 {[%clk 0:01:21]}  fxe4 {[%clk 0:01:10]} 20. Bxe4 {[%clk 0:01:18]}  Rxf1+ {[%clk 0:01:06]} 21. Rxf1 {[%clk 0:01:17]}  Qh5 {[%clk 0:00:50]} 22. Bxh7+ {[%clk 0:01:13]}  Qxh7 {[%clk 0:00:47]} 23. Rf8+ {[%clk 0:01:13]}  Kxf8 {[%clk 0:00:47]} 24. Qxh7 {[%clk 0:01:13]}  Rf7 {[%clk 0:00:44]} 25. Qh8+ {[%clk 0:01:01]}  Ke7 {[%clk 0:00:44]} 26. d5 {[%clk 0:01:01]}  exd5 {[%clk 0:00:43]} 27. cxd5 {[%clk 0:01:01]}  Nd8 {[%clk 0:00:41]} 28. Bxg7 {[%clk 0:00:56]}  Kd6 {[%clk 0:00:40]} 29. Bf6 {[%clk 0:00:50]} 1-0


[Site "https://www.chess.com"]

[Event "Titled Tuesday Blitz December 27 Early 2022"]
[White "Moroni, Luca Jr"]
[Black "gshwbedhkhd"]
[WhiteFideId "865834"]
[WhiteElo "2535"]
[BlackElo "2577"]
[Result "1-0"]
[Round "02"]
[TimeControl "180+2"]
[Date "2022.12.27"]
[WhiteClock "0:00:27"]
[BlackClock "0:00:02"]

1. d4 {[%clk 0:03:00]}  f5 {[%clk 0:02:59]} 2. Nf3 {[%clk 0:02:59]}  Nf6 {[%clk 0:02:59]} 3. g3 {[%clk 0:02:59]}  g6 {[%clk 0:02:59]} 4. Bg2 {[%clk 0:03:00]}  Bg7 {[%clk 0:03:00]} 5. b3 {[%clk 0:03:01]}  O-O {[%clk 0:03:00]} 6. Bb2 {[%clk 0:03:01]}  d6 {[%clk 0:02:53]} 7. O-O {[%clk 0:03:01]}  Ne4 {[%clk 0:02:54]} 8. c4 {[%clk 0:02:59]}  Nc6 {[%clk 0:02:52]} 9. Nc3 {[%clk 0:02:57]}  Nxc3 {[%clk 0:02:48]} 10. Bxc3 {[%clk 0:02:58]}  e5 {[%clk 0:02:49]} 11. dxe5 {[%clk 0:02:58]}  dxe5 {[%clk 0:02:50]} 12. Qd5+ {[%clk 0:02:56]}  Kh8 {[%clk 0:02:40]} 13. Qxd8 {[%clk 0:02:42]}  Rxd8 {[%clk 0:02:41]} 14. Ng5 {[%clk 0:02:42]}  Rf8 {[%clk 0:02:37]} 15. Bxc6 {[%clk 0:02:33]}  bxc6 {[%clk 0:02:38]} 16. Rfd1 {[%clk 0:02:32]}  h6 {[%clk 0:02:27]} 17. Nf3 {[%clk 0:02:32]}  Re8 {[%clk 0:02:26]} 18. Rd2 {[%clk 0:02:00]}  Bf6 {[%clk 0:01:50]} 19. Rad1 {[%clk 0:01:45]}  Kg7 {[%clk 0:01:49]} 20. Ba5 {[%clk 0:01:36]}  e4 {[%clk 0:01:28]} 21. Nd4 {[%clk 0:01:34]}  Bb7 {[%clk 0:01:01]} 22. e3 {[%clk 0:01:14]}  Rac8 {[%clk 0:00:48]} 23. b4 {[%clk 0:01:07]}  Kf7 {[%clk 0:00:31]} 24. Nb3 {[%clk 0:01:06]}  Ba6 {[%clk 0:00:24]} 25. Rc1 {[%clk 0:00:56]}  Be7 {[%clk 0:00:17]} 26. a4 {[%clk 0:00:54]}  Red8 {[%clk 0:00:12]} 27. Rxd8 {[%clk 0:00:53]}  Rxd8 {[%clk 0:00:13]} 28. b5 {[%clk 0:00:53]}  Bb7 {[%clk 0:00:07]} 29. Bxc7 {[%clk 0:00:51]}  Rc8 {[%clk 0:00:05]} 30. Be5 {[%clk 0:00:47]}  cxb5 {[%clk 0:00:05]} 31. axb5 {[%clk 0:00:46]}  a6 {[%clk 0:00:03]} 32. Na5 {[%clk 0:00:41]}  Ba8 {[%clk 0:00:04]} 33. b6 {[%clk 0:00:41]}  Rc5 {[%clk 0:00:02]} 34. Bc7 {[%clk 0:00:30]}  Rxa5 {[%clk 0:00:02]} 35. b7 {[%clk 0:00:30]}  Bxb7 {[%clk 0:00:01]} 36. Bxa5 {[%clk 0:00:30]}  Bc6 {[%clk 0:00:01]} 37. Rb1 {[%clk 0:00:28]}  Ke6 {[%clk 0:00:02]} 38. Rb6 {[%clk 0:00:27]} 1-0


[Site "https://www.chess.com"]

[Event "Titled Tuesday Blitz December 27 Early 2022"]
[White "Movahed, Sina"]
[Black "Ezat, Mohamed"]
[WhiteFideId "42520835"]
[BlackFideId "10600906"]
[WhiteElo "2340"]
[BlackElo "2402"]
[Result "1-0"]
[Round "02"]
[TimeControl "180+2"]
[Date "2022.12.27"]
[WhiteClock "0:01:17"]
[BlackClock "0:00:01"]

1. e4 {[%clk 0:03:00]}  c6 {[%clk 0:02:54]} 2. Nf3 {[%clk 0:02:59]}  d5 {[%clk 0:02:53]} 3. e5 {[%clk 0:02:59]}  c5 {[%clk 0:02:51]} 4. c3 {[%clk 0:02:58]}  Nc6 {[%clk 0:02:50]} 5. h3 {[%clk 0:02:56]}  Bf5 {[%clk 0:02:50]} 6. d4 {[%clk 0:02:56]}  e6 {[%clk 0:02:50]} 7. Be2 {[%clk 0:02:52]}  Nge7 {[%clk 0:02:43]} 8. O-O {[%clk 0:02:51]}  Be4 {[%clk 0:02:41]} 9. Nbd2 {[%clk 0:02:50]}  Bxf3 {[%clk 0:02:39]} 10. Nxf3 {[%clk 0:02:49]}  Ng6 {[%clk 0:02:37]} 11. Be3 {[%clk 0:02:47]}  Qb6 {[%clk 0:02:34]} 12. Rb1 {[%clk 0:02:44]}  Be7 {[%clk 0:02:33]} 13. g3 {[%clk 0:02:40]}  O-O {[%clk 0:02:31]} 14. h4 {[%clk 0:02:40]}  f5 {[%clk 0:02:19]} 15. h5 {[%clk 0:02:34]}  Nh8 {[%clk 0:02:18]} 16. c4 {[%clk 0:02:35]}  cxd4 {[%clk 0:02:15]} 17. Nxd4 {[%clk 0:02:32]}  Nxd4 {[%clk 0:02:13]} 18. Bxd4 {[%clk 0:02:18]}  Qd8 {[%clk 0:02:05]} 19. cxd5 {[%clk 0:02:16]}  Qxd5 {[%clk 0:02:04]} 20. Bf3 {[%clk 0:02:13]}  Qxa2 {[%clk 0:01:59]} 21. Qd3 {[%clk 0:02:08]}  Rad8 {[%clk 0:01:45]} 22. Rfd1 {[%clk 0:02:06]}  Bc5 {[%clk 0:01:23]} 23. Ra1 {[%clk 0:02:05]}  Qxa1 {[%clk 0:00:55]} 24. Rxa1 {[%clk 0:02:05]}  Bxd4 {[%clk 0:00:53]} 25. Qb3 {[%clk 0:02:04]}  Rfe8 {[%clk 0:00:52]} 26. Bxb7 {[%clk 0:02:01]}  Nf7 {[%clk 0:00:50]} 27. Kg2 {[%clk 0:01:45]}  Rb8 {[%clk 0:00:41]} 28. Ra4 {[%clk 0:01:34]}  Bb6 {[%clk 0:00:34]} 29. Bc6 {[%clk 0:01:29]}  Re7 {[%clk 0:00:34]} 30. f4 {[%clk 0:01:26]}  Nh6 {[%clk 0:00:31]} 31. Bf3 {[%clk 0:01:24]}  Kf7 {[%clk 0:00:29]} 32. Kh3 {[%clk 0:01:23]}  Rd8 {[%clk 0:00:27]} 33. Rc4 {[%clk 0:01:22]}  g5 {[%clk 0:00:15]} 34. fxg5 {[%clk 0:01:20]}  Ng8 {[%clk 0:00:12]} 35. Rc6 {[%clk 0:01:19]}  Ree8 {[%clk 0:00:11]} 36. h6 {[%clk 0:01:19]}  Re7 {[%clk 0:00:03]} 37. Bh5+ {[%clk 0:01:18]}  Kf8 {[%clk 0:00:01]} 38. Rxe6 {[%clk 0:01:18]}  Rxe6 {[%clk 0:00:01]} 39. Qxe6 {[%clk 0:01:17]} 1-0


[Site "https://www.chess.com"]

[Event "Titled Tuesday Blitz December 27 Early 2022"]
[White "Najdin, Danil"]
[Black "Narayanan.S.L"]
[WhiteFideId "4172426"]
[BlackFideId "5058422"]
[WhiteElo "2235"]
[BlackElo "2660"]
[Result "1-0"]
[Round "02"]
[TimeControl "180+2"]
[Date "2022.12.27"]
[WhiteClock "0:00:14"]
[BlackClock "0:00:17"]

1. e4 {[%clk 0:03:00]}  Nc6 {[%clk 0:02:59]} 2. d4 {[%clk 0:03:00]}  d5 {[%clk 0:02:59]} 3. Nc3 {[%clk 0:03:00]}  dxe4 {[%clk 0:02:56]} 4. d5 {[%clk 0:03:00]}  Ne5 {[%clk 0:02:56]} 5. Bf4 {[%clk 0:03:01]}  Ng6 {[%clk 0:02:56]} 6. Bg3 {[%clk 0:03:01]}  f5 {[%clk 0:02:37]} 7. h4 {[%clk 0:03:01]}  h5 {[%clk 0:02:33]} 8. Nh3 {[%clk 0:02:52]}  Nf6 {[%clk 0:02:19]} 9. Nb5 {[%clk 0:02:47]}  e5 {[%clk 0:01:47]} 10. dxe6 {[%clk 0:02:45]}  Bd6 {[%clk 0:01:14]} 11. Nxd6+ {[%clk 0:02:43]}  cxd6 {[%clk 0:01:14]} 12. Bxd6 {[%clk 0:02:41]}  Bxe6 {[%clk 0:01:12]} 13. Ng5 {[%clk 0:02:40]}  Qd7 {[%clk 0:01:03]} 14. Nxe6 {[%clk 0:02:02]}  Qxe6 {[%clk 0:01:04]} 15. Bb5+ {[%clk 0:02:02]}  Kf7 {[%clk 0:01:04]} 16. Qd4 {[%clk 0:02:01]}  Rhc8 {[%clk 0:01:02]} 17. b3 {[%clk 0:01:55]}  Rxc2 {[%clk 0:00:40]} 18. Bc4 {[%clk 0:01:27]}  Rxc4 {[%clk 0:00:40]} 19. Qxc4 {[%clk 0:01:18]}  Rc8 {[%clk 0:00:41]} 20. Qxe6+ {[%clk 0:01:18]}  Kxe6 {[%clk 0:00:42]} 21. Bh2 {[%clk 0:01:02]}  f4 {[%clk 0:00:27]} 22. O-O {[%clk 0:01:00]}  Kf5 {[%clk 0:00:20]} 23. Rfc1 {[%clk 0:00:59]}  Rd8 {[%clk 0:00:17]} 24. Rd1 {[%clk 0:00:59]}  Rd3 {[%clk 0:00:16]} 25. f3 {[%clk 0:00:56]}  Ne5 {[%clk 0:00:14]} 26. fxe4+ {[%clk 0:00:43]}  Nxe4 {[%clk 0:00:15]} 27. Rxd3 {[%clk 0:00:39]}  Nxd3 {[%clk 0:00:15]} 28. Rd1 {[%clk 0:00:39]}  Nec5 {[%clk 0:00:10]} 29. Kf1 {[%clk 0:00:33]}  a5 {[%clk 0:00:10]} 30. Ke2 {[%clk 0:00:32]}  Ke4 {[%clk 0:00:10]} 31. Bg1 {[%clk 0:00:28]}  b6 {[%clk 0:00:11]} 32. Bxc5 {[%clk 0:00:27]}  Nxc5 {[%clk 0:00:12]} 33. Rd6 {[%clk 0:00:25]}  b5 {[%clk 0:00:12]} 34. Rb6 {[%clk 0:00:19]}  b4 {[%clk 0:00:12]} 35. Rb5 {[%clk 0:00:19]}  Ne6 {[%clk 0:00:12]} 36. Rxa5 {[%clk 0:00:18]}  Nd4+ {[%clk 0:00:13]} 37. Kf2 {[%clk 0:00:18]}  Nf5 {[%clk 0:00:13]} 38. Rb5 {[%clk 0:00:14]}  Nxh4 {[%clk 0:00:13]} 39. Rxb4+ {[%clk 0:00:15]}  Kf5 {[%clk 0:00:13]} 40. a4 {[%clk 0:00:15]}  g5 {[%clk 0:00:14]} 41. a5 {[%clk 0:00:15]}  g4 {[%clk 0:00:15]} 42. a6 {[%clk 0:00:14]}  g3+ {[%clk 0:00:15]} 43. Kf1 {[%clk 0:00:14]}  Nxg2 {[%clk 0:00:16]} 44. Kxg2 {[%clk 0:00:14]}  h4 {[%clk 0:00:17]} 45. a7 {[%clk 0:00:14]} 1-0


[Site "https://www.chess.com"]

[Event "Titled Tuesday Blitz December 27 Early 2022"]
[White "Ordekalog"]
[Black "Shubenkova, Veronika"]
[BlackFideId "44124040"]
[WhiteElo "2826"]
[BlackElo "1960"]
[Result "1-0"]
[Round "02"]
[TimeControl "180+2"]
[Date "2022.12.27"]
[WhiteClock "0:00:16"]
[BlackClock "0:00:15"]

1. e4 {[%clk 0:03:00]}  c6 {[%clk 0:02:57]} 2. d4 {[%clk 0:02:59]}  d5 {[%clk 0:02:57]} 3. Nd2 {[%clk 0:02:59]}  dxe4 {[%clk 0:02:57]} 4. Nxe4 {[%clk 0:03:00]}  Bf5 {[%clk 0:02:57]} 5. Bd3 {[%clk 0:03:00]}  Bxe4 {[%clk 0:02:52]} 6. Bxe4 {[%clk 0:02:59]}  Nf6 {[%clk 0:02:53]} 7. Bf3 {[%clk 0:02:59]}  e6 {[%clk 0:02:52]} 8. Ne2 {[%clk 0:02:58]}  Nbd7 {[%clk 0:02:51]} 9. O-O {[%clk 0:02:56]}  Be7 {[%clk 0:02:51]} 10. c3 {[%clk 0:02:55]}  O-O {[%clk 0:02:51]} 11. Be3 {[%clk 0:02:54]}  Qa5 {[%clk 0:02:50]} 12. Qc2 {[%clk 0:02:54]}  Nd5 {[%clk 0:02:50]} 13. Bd2 {[%clk 0:02:53]}  Qc7 {[%clk 0:02:46]} 14. c4 {[%clk 0:02:51]}  N5f6 {[%clk 0:02:45]} 15. Rfe1 {[%clk 0:02:24]}  e5 {[%clk 0:02:44]} 16. Rad1 {[%clk 0:02:09]}  Rfe8 {[%clk 0:02:36]} 17. Bc3 {[%clk 0:01:58]}  e4 {[%clk 0:02:29]} 18. Bxe4 {[%clk 0:01:52]}  Bd6 {[%clk 0:02:29]} 19. Ng3 {[%clk 0:01:50]}  Nxe4 {[%clk 0:02:24]} 20. Rxe4 {[%clk 0:01:49]}  Nf6 {[%clk 0:02:24]} 21. Ree1 {[%clk 0:01:36]}  Bf4 {[%clk 0:02:10]} 22. Qf5 {[%clk 0:01:28]}  Bxg3 {[%clk 0:02:02]} 23. hxg3 {[%clk 0:01:27]}  Qd6 {[%clk 0:01:59]} 24. a3 {[%clk 0:01:18]}  Nd7 {[%clk 0:01:27]} 25. Qg4 {[%clk 0:01:03]}  Nf6 {[%clk 0:01:24]} 26. Qf3 {[%clk 0:01:01]}  Rad8 {[%clk 0:01:14]} 27. g4 {[%clk 0:00:58]}  h6 {[%clk 0:01:13]} 28. Qf5 {[%clk 0:00:57]}  Nh7 {[%clk 0:01:07]} 29. d5 {[%clk 0:00:44]}  Rxe1+ {[%clk 0:01:01]} 30. Rxe1 {[%clk 0:00:44]}  cxd5 {[%clk 0:00:58]} 31. cxd5 {[%clk 0:00:45]}  Nf8 {[%clk 0:00:51]} 32. Bb4 {[%clk 0:00:41]}  Qc7 {[%clk 0:00:34]} 33. Re7 {[%clk 0:00:36]}  Qc1+ {[%clk 0:00:34]} 34. Kh2 {[%clk 0:00:36]}  f6 {[%clk 0:00:32]} 35. Bc3 {[%clk 0:00:29]}  Qd1 {[%clk 0:00:29]} 36. Rxg7+ {[%clk 0:00:21]}  Kh8 {[%clk 0:00:21]} 37. Qxf6 {[%clk 0:00:21]}  Qxd5 {[%clk 0:00:15]} 38. Rh7+ {[%clk 0:00:15]}  Kxh7 {[%clk 0:00:15]} 39. Qg7# {[%clk 0:00:16]} 1-0


[Site "https://www.chess.com"]